bitfinex-derivatives/quotes_BNBF0:USTF0_20250112
["timestamp","ask_amount","ask_price","bid_price","bid_amount"]
[1736646078122,0.28684527,697.24,695.78,3.04597434]
[1736646078326,0.28684527,697.24,695.78,5.79381792]
[1736646078521,0.28684527,697.24,695.79,2.74784358]
[1736646079329,0.28684527,697.24,695.78,2.74784358]
[1736646080430,0.28684527,697.24,695.77,2.74784358]
[1736646080830,0.28684527,697.24,695.77,4.03208131]
[1736646081825,0.28684527,697.24,695.95,1.28423773]
[1736646082927,0.28684527,697.24,695.87,2.74784358]
[1736646084031,0.28684527,697.24,695.79,2.74784358]
[1736646085131,0.28684527,697.24,695.76,2.74784358]
[1736646090035,0.28684527,697.24,695.72,3.04597434]
[1736646090036,0.28684527,697.24,695.73,2.74784358]
[1736646090739,0.28684527,697.24,695.76,1.28423773]
[1736646091437,0.28684527,697.24,695.77,1.28423773]
[1736646092336,0.28684527,697.24,695.76,4.33021207]
[1736646092537,0.28684527,697.24,695.77,2.74784358]
[1736646093034,0.28684527,697.24,695.84,1.28423773]
[1736646094340,0.28684527,697.24,695.83,1.28423773]
[1736646096237,0.26376472,697.23,695.83,0.93155659]
[1736646096436,0.26376472,697.23,695.83,2.74784358]
[1736646097139,0.2868535,697.22,695.83,2.74784358]
[1736646097340,0.26376881,697.21,695.83,2.74784358]
[1736646097935,0.28686173,697.2,695.83,2.74784358]
[1736646098438,1.07115927,697.18,695.83,2.74784358]
[1736646098741,1.07115927,697.18,695.81,2.74784358]
[1736646099141,0.28687407,697.17,695.81,2.74784358]
[1736646100041,0.28687407,697.17,695.69,2.74784358]
[1736646102343,0.28687407,697.17,695.61,2.74784358]
[1736646103244,0.28687407,697.17,695.66,1.28423773]
[1736646105446,0.28687407,697.17,695.65,4.03208131]
[1736646106347,0.28687407,697.17,695.66,4.33021207]
[1736646106544,0.28687407,697.17,695.67,2.74784358]
[1736646107548,0.28687407,697.17,695.68,1.28423773]
[1736646107748,0.28687407,697.17,695.68,4.03208131]
[1736646108748,0.28687407,697.17,695.68,2.74784358]
[1736646109147,0.28687407,697.17,695.68,5.79381792]
[1736646109347,0.28687407,697.17,695.69,2.74784358]
[1736646110243,0.28687407,697.17,695.69,5.79381792]
[1736646110446,0.28687407,697.17,695.72,1.28423773]
[1736646112142,0.28687407,697.17,695.73,1.28423773]
[1736646112750,0.28687407,697.17,695.72,1.81304762]
[1736646113046,0.28687407,697.17,695.66,1.81304762]
[1736646113650,0.28687407,697.17,695.65,3.04597434]
[1736646113944,0.28687407,697.17,695.49,1.28423773]
[1736646114751,0.28687407,697.17,695.53,1.28423773]
[1736646116048,0.28687407,697.17,695.51,1.28423773]
[1736646116845,0.28687407,697.17,695.52,1.28423773]
[1736646118652,0.28687407,697.17,695.53,1.28423773]
[1736646119346,0.28687407,697.17,695.54,1.28423773]
[1736646120555,0.28687407,697.17,695.47,4.02865411]
[1736646120951,0.28687407,697.17,695.48,3.04597434]
[1736646121146,0.28687407,697.17,695.48,5.79039072]
[1736646121351,0.28687407,697.17,695.49,4.02865411]
[1736646122344,0.28687407,697.17,695.5,3.04597434]
[1736646122546,0.28687407,697.17,695.5,5.79039072]
[1736646122861,0.28687407,697.17,695.51,2.74441638]
[1736646123653,0.28687407,697.17,695.7,1.28423773]
[1736646124853,0.28687407,697.17,695.67,1.28423773]
[1736646125453,1.07115927,697.13,695.8,1.28423773]
[1736646125753,0.28689465,697.12,695.8,1.28423773]
[1736646126153,1.07115927,697.09,695.87,1.28423773]
[1736646127051,0.28689465,697.12,695.91,1.28423773]
[1736646127052,0.28691111,697.08,695.91,1.28423773]
[1736646127857,0.28691111,697.08,695.9,1.28423773]
[1736646128950,0.28691111,697.08,695.98,1.28423773]
[1736646133761,0.28691111,697.08,696.0,1.28423773]
[1736646134561,0.28691111,697.08,696.05,1.28423773]
[1736646135763,0.28691111,697.08,695.99,2.74441638]
[1736646135764,0.28691111,697.08,696.04,1.28423773]
[1736646136861,0.28691111,697.08,696.01,2.74441638]
[1736646138162,0.28691111,697.08,695.92,0.28738935]
[1736646139265,0.28691111,697.08,695.92,3.03180573]
[1736646140464,0.28691111,697.08,695.92,0.28738935]
[1736646147470,0.28691111,697.08,695.47,1.28423773]
[1736646147769,0.28691111,697.08,695.48,0.28757117]
[1736646151167,0.28691111,697.08,695.49,3.05516056]
[1736646151371,0.28691111,697.08,695.73,1.28423773]
[1736646152573,0.28691111,697.08,695.75,1.28423773]
[1736646153466,0.28691111,697.08,695.74,1.28423773]
[1736646154576,0.28691111,697.08,695.73,1.28423773]
[1736646156471,0.28691111,697.08,695.73,2.74773481]
[1736646157176,0.28691111,697.08,695.73,5.80289537]
[1736646157371,0.28691111,697.08,695.74,2.74773481]
[1736646159678,0.28691111,697.08,695.76,1.28423773]
[1736646160471,0.28691111,697.08,695.75,4.03197254]
[1736646161077,0.28691111,697.08,695.76,3.05516056]
[1736646161274,0.28691111,697.08,695.76,5.80289537]
[1736646161477,0.28691111,697.08,695.77,2.74773481]
[1736646164781,0.28691111,697.08,695.76,2.74773481]
[1736646165480,0.28691111,697.08,695.76,5.80289537]
[1736646165680,0.28691111,697.08,695.77,2.74773481]
[1736646166883,0.28691111,697.08,695.8,1.28423773]
[1736646170991,0.28691111,697.08,695.57,1.81499096]
[1736646171191,0.28691111,697.08,695.4,1.28423773]
[1736646173092,0.28691111,697.08,695.41,1.28423773]
[1736646174095,0.28691111,697.08,695.36,1.28423773]
[1736646174995,0.28691111,697.08,695.38,1.28423773]
[1736646175895,0.28691111,697.08,695.4,1.28423773]
[1736646176997,0.28691111,697.08,695.41,1.28423773]
[1736646177796,0.28691111,697.08,695.43,1.28423773]
[1736646179498,1.07115927,697.07,695.85,1.28423773]
[1736646180399,1.35807038,697.08,695.86,1.28423773]
[1736646181393,0.28691111,697.08,696.04,1.28423773]
[1736646182499,0.28691111,697.08,696.01,1.28423773]
[1736646183994,0.28691111,697.08,695.99,1.28423773]
[1736646184700,0.28691111,697.08,695.99,4.03167535]
[1736646184901,0.28691111,697.08,696.01,1.28423773]
[1736646185903,0.28691111,697.08,696.01,2.74743762]
[1736646189807,0.28691111,697.08,695.82,2.74743762]
[1736646194009,0.28691111,697.08,695.81,2.74743762]
[1736646195609,0.28691111,697.08,695.74,4.03167535]
[1736646196408,0.28691111,697.08,695.75,0.93152011]
[1736646196610,0.28691111,697.08,695.74,4.0307488]
[1736646196908,0.28691111,697.08,695.75,3.05394859]
[1736646197103,0.28691111,697.08,695.75,5.80045966]
[1736646197306,0.28691111,697.08,695.76,1.81499096]
[1736646197709,0.28691111,697.08,695.75,3.05394859]
[1736646198104,0.28691111,697.08,695.59,1.81499096]
[1736646198310,0.28691111,697.08,695.6,0.28752156]
[1736646203207,0.28691111,697.08,695.64,1.28423773]
[1736646204514,0.28691111,697.08,695.74,1.28423773]
[1736646205417,0.28691111,697.08,695.77,1.28423773]
[1736646207620,0.28691111,697.08,695.68,2.74655481]
[1736646207621,0.28691111,697.08,695.84,1.28423773]
[1736646208319,0.28691111,697.08,695.86,1.28423773]
[1736646209119,0.28691111,697.08,695.88,1.28423773]
[1736646210020,0.28691111,697.08,695.89,1.28423773]
[1736646210920,0.28691111,697.08,695.92,1.28423773]
[1736646212021,0.28691111,697.08,695.83,3.05394859]
[1736646212214,0.28691111,697.08,695.83,5.8005034]
[1736646212419,0.28691111,697.08,695.84,2.74655481]
[1736646213121,0.28691111,697.08,695.9,1.28423773]
[1736646214123,0.28691111,697.08,695.91,1.28423773]
[1736646215317,0.28691111,697.08,695.92,1.28423773]
[1736646216326,0.28691111,697.08,695.88,1.81499096]
[1736646216925,0.28691111,697.08,695.74,1.28423773]
[1736646217728,0.28691111,697.08,695.83,1.28423773]
[1736646219031,0.28691111,697.08,695.84,1.28423773]
[1736646220131,0.28691111,697.08,695.86,1.28423773]
[1736646223530,0.28691111,697.08,695.88,1.28423773]
[1736646225934,0.28691111,697.08,695.93,1.28423773]
[1736646226734,0.28691111,697.08,695.86,1.28423773]
[1736646227630,0.28691111,697.08,695.85,4.03071466]
[1736646227833,0.28691111,697.08,695.86,3.05394859]
[1736646228030,0.28691111,697.08,695.86,5.80042552]
[1736646228232,0.28691111,697.08,695.87,2.74647693]
[1736646228837,0.28691111,697.08,695.88,1.28423773]
[1736646229231,0.28691111,697.08,695.88,4.33818632]
[1736646229429,0.28691111,697.08,695.89,2.74647693]
[1736646230538,0.28691111,697.08,695.89,5.80042552]
[1736646230737,0.28691111,697.08,695.9,2.74647693]
[1736646232042,0.28691111,697.08,695.9,5.80042552]
[1736646232242,0.28691111,697.08,695.91,2.74647693]
[1736646233545,0.28691111,697.08,695.99,1.28423773]
[1736646235347,0.28691111,697.08,696.0,1.28423773]
[1736646236342,0.28691111,697.08,696.01,1.28423773]
[1736646237647,0.28691111,697.08,695.97,2.74739928]
[1736646240252,0.28691111,697.08,695.97,5.80134787]
[1736646240549,0.28691111,697.08,695.98,2.74739928]
[1736646241949,0.28691111,697.08,695.87,2.74739928]
[1736646243147,0.28691111,697.08,695.87,5.80134787]
[1736646243350,0.28691111,697.08,695.88,2.74739928]
[1736646243850,0.28691111,697.08,695.9,1.28423773]
[1736646244748,0.28691111,697.08,695.9,4.03163701]
[1736646245552,0.28691111,697.08,695.91,3.05394859]
[1736646245751,0.28691111,697.08,695.91,5.80134787]
[1736646245948,0.28691111,697.08,695.92,2.74739928]
[1736646246346,0.28691111,697.08,695.92,2.74715048]
[1736646247446,0.28691111,697.08,695.92,1.81499096]
[1736646247651,0.28691111,697.08,695.91,3.05394859]
[1736646248846,0.28691111,697.08,695.85,1.81499096]
[1736646249049,0.28691111,697.08,695.76,1.28423773]
[1736646249249,0.28691111,697.08,695.77,0.28745131]
[1736646250861,0.28691111,697.08,695.79,1.28423773]
[1736646251251,0.28691111,697.08,695.8,0.28743891]
[1736646251652,0.28691111,697.08,695.8,1.57167664]
[1736646252657,0.28691111,697.08,695.81,1.28423773]
[1736646252856,0.28691111,697.08,695.82,0.28743065]
[1736646258461,0.28691111,697.08,695.86,1.28423773]
[1736646259456,0.28691111,697.08,695.87,0.28741]
[1736646271068,0.28691111,697.08,696.2,1.28423773]
[1736646271968,0.28691111,697.08,696.21,1.28423773]
[1736646273067,0.28691111,697.08,696.19,1.28423773]
[1736646274170,0.28691111,697.08,696.2,1.28423773]
[1736646275271,0.28691111,697.08,696.26,1.28423773]
[1736646277965,0.28691111,697.08,696.21,2.74668864]
[1736646279072,0.28691111,697.08,696.16,4.03092637]
[1736646279773,0.28691111,697.08,696.19,1.28423773]
[1736646280369,0.28691111,697.08,696.17,1.28423773]
[1736646280571,0.28691111,697.08,696.17,4.33818632]
[1736646280771,0.28691111,697.08,696.18,2.74668864]
[1736646281872,0.28691111,697.08,696.18,7.08487496]
[1736646282076,0.28691111,697.08,696.19,2.74668864]
[1736646282776,0.28691111,697.08,696.19,5.80063723]
[1736646283075,0.28691111,697.08,696.2,2.74668864]
[1736646284577,0.28691111,697.08,696.18,2.74668864]
[1736646287477,0.28691111,697.08,696.18,5.80063723]
[1736646287676,0.28691111,697.08,696.19,4.03092637]
[1736646289379,0.28691111,697.08,696.2,3.05394859]
[1736646289581,0.28691111,697.08,696.2,5.80063723]
[1736646289780,0.28691111,697.08,696.21,2.74668864]
[1736646290174,0.28691111,697.08,696.2,4.33818632]
[1736646290377,0.28691111,697.08,696.2,1.28423773]
[1736646291475,0.28691111,697.08,696.12,1.81308447]
[1736646291681,0.28691111,697.08,696.12,2.74453121]
[1736646292680,0.28691111,697.08,696.04,2.74453121]
[1736646293182,0.28691111,697.08,696.16,1.28423773]
[1736646296281,0.28691111,697.08,696.17,1.28423773]
[1736646297683,0.28691111,697.08,696.16,1.28423773]
[1736646299881,0.28691111,697.08,696.18,1.28423773]
[1736646300680,0.28691111,697.08,696.15,2.74537689]
[1736646300681,0.28691111,697.08,696.23,1.28423773]
[1736646301679,1.07115927,697.42,696.29,1.28423773]
[1736646302584,1.07115927,697.45,696.29,1.28423773]
[1736646303379,1.07115927,697.46,696.27,1.28423773]
[1736646303580,1.35791406,697.46,696.27,1.28423773]
[1736646304484,1.35791406,697.46,696.24,2.74537689]
[1736646304485,0.28675479,697.46,696.24,2.74537689]
[1736646305089,0.28675479,697.46,696.23,2.74537689]
[1736646306188,0.28675479,697.46,696.21,2.74537689]
[1736646309886,0.28675479,697.46,696.21,5.79932548]
[1736646310087,0.28675479,697.46,696.22,2.74537689]
[1736646311188,0.28675479,697.46,696.22,5.79932548]
[1736646311389,0.28675479,697.46,696.23,2.74537689]
[1736646311991,0.28675479,697.46,696.24,1.28423773]
[1736646312390,0.28675479,697.46,696.24,4.33818632]
[1736646312590,0.28675479,697.46,696.25,2.74537689]
[1736646313288,0.28675479,697.46,696.25,4.02961462]
[1736646313491,0.28675479,697.46,696.26,3.05394859]
[1736646313693,0.28675479,697.46,696.26,5.79932548]
[1736646313891,0.28675479,697.46,696.27,2.74537689]
[1736646315090,0.28675479,697.46,696.26,2.74537689]
[1736646318101,0.28675479,697.46,696.2,2.74537689]
[1736646319194,1.35791406,697.46,696.2,2.74537689]
[1736646319996,1.07115927,697.42,696.2,2.74537689]
[1736646320198,0.28677535,697.41,696.2,2.74537689]
[1736646320803,0.28677535,697.41,696.13,2.74537689]
[1736646322704,1.35793462,697.41,696.13,2.74537689]
[1736646323896,0.28677535,697.41,696.16,1.28423773]
[1736646325003,0.28677535,697.41,696.12,2.74537689]
[1736646325004,0.28677535,697.41,696.17,1.28423773]
[1736646325898,0.28677535,697.41,696.18,1.28423773]
[1736646326907,0.28677535,697.41,696.19,1.28423773]
[1736646327907,0.28677535,697.41,696.2,1.28423773]
[1736646328907,0.28677535,697.41,696.22,1.28423773]
[1736646329906,0.28677535,697.41,696.21,1.28423773]
[1736646330905,0.28677535,697.41,696.22,1.28423773]
[1736646332110,0.28677535,697.41,696.22,2.74537689]
[1736646333409,0.28677535,697.41,696.17,2.74537689]
[1736646333812,0.28677535,697.41,696.17,4.02961462]
[1736646334512,0.28677535,697.41,696.18,3.05394859]
[1736646334713,0.28677535,697.41,696.18,5.79932548]
[1736646335014,0.28677535,697.41,696.19,2.74537689]
[1736646335715,0.28677535,697.41,696.19,5.79932548]
[1736646335913,0.28677535,697.41,696.21,1.28423773]
[1736646337212,0.28677535,697.41,696.21,4.33818632]
[1736646337413,0.28677535,697.41,696.22,2.74537689]
[1736646338015,0.28677535,697.41,696.22,5.79932548]
[1736646338315,0.28677535,697.41,696.23,2.74537689]
[1736646341212,0.28677535,697.41,696.22,2.74537689]
[1736646342019,0.28677535,697.41,696.22,5.79932548]
[1736646342219,0.28677535,697.41,696.23,2.74537689]
[1736646346019,0.28677535,697.41,696.22,2.74537689]
[1736646346415,0.28677535,697.41,696.26,1.28423773]
[1736646347122,0.28677535,697.41,696.27,1.28423773]
[1736646350024,0.28677535,697.41,696.27,4.33818632]
[1736646350225,0.28677535,697.41,696.28,2.74537689]
[1736646351024,0.28677535,697.41,696.28,5.79932548]
[1736646351226,0.28677535,697.41,696.29,2.74537689]
[1736646352329,0.28677535,697.41,696.29,5.79932548]
[1736646352528,0.28677535,697.41,696.3,2.74537689]
[1736646354229,1.35793462,697.41,696.3,2.74537689]
[1736646355726,1.35793462,697.41,696.23,2.74537689]
[1736646356829,1.35793462,697.41,696.23,5.79932548]
[1736646357131,1.35793462,697.41,696.24,2.74537689]
[1736646358223,1.07115927,697.4,696.24,2.74537689]
[1736646358727,1.07115927,697.4,696.24,5.79932548]
[1736646358933,1.07115927,697.4,696.25,2.74537689]
[1736646360232,1.07115927,697.4,696.25,5.79932548]
[1736646360433,1.07115927,697.4,696.26,2.74537689]
[1736646361533,0.28677535,697.41,696.32,1.28423773]
[1736646364436,0.28677535,697.41,696.33,1.28423773]
[1736646367133,0.28677535,697.41,696.33,4.33818632]
[1736646367334,0.28677535,697.41,696.35,1.28423773]
[1736646368235,1.07115927,697.37,696.34,2.74537689]
[1736646368835,1.07115927,697.37,696.28,2.74537689]
[1736646369137,1.07115927,697.36,696.28,2.74537689]
[1736646370137,1.07115927,697.36,696.27,2.74537689]
[1736646371540,1.07115927,697.39,696.27,2.74537689]
[1736646372236,1.07115927,697.38,696.27,2.74537689]
[1736646372734,1.07115927,697.38,696.24,2.74537689]
[1736646373138,1.07115927,697.37,696.24,2.74537689]
[1736646374139,1.07115927,697.38,696.24,5.79932548]
[1736646374333,1.07115927,697.38,696.25,2.74537689]
[1736646375033,1.07115927,697.37,696.25,2.74537689]
[1736646376236,1.07115927,697.4,696.25,2.74537689]
[1736646377537,1.07115927,697.4,696.21,2.74537689]
[1736646377933,1.07115927,697.39,696.21,2.74537689]
[1736646381937,0.28677535,697.41,696.23,1.28423773]
[1736646381938,1.07115927,697.34,696.23,1.28423773]
[1736646382843,1.07115927,697.35,696.24,1.28423773]
[1736646383740,0.28677535,697.41,696.33,1.28423773]
[1736646386241,0.28677535,697.41,696.32,1.28423773]
[1736646387443,0.28677535,697.41,696.31,1.28423773]
[1736646388042,0.28677535,697.41,696.31,2.21653015]
[1736646388237,0.28677535,697.41,696.31,4.02961462]
[1736646388443,0.28677535,697.41,696.31,2.74537689]
[1736646390445,1.07115927,697.35,696.31,2.74537689]
[1736646391341,1.07115927,697.35,696.22,2.74537689]
[1736646391538,1.07115927,697.34,696.22,2.74537689]
[1736646392340,1.07115927,697.35,696.22,2.74537689]
[1736646393347,1.07115927,697.37,696.22,4.02961462]
[1736646394348,1.07115927,697.37,696.23,3.05394859]
[1736646394543,1.07115927,697.37,696.23,4.86703306]
[1736646395546,0.28677535,697.41,696.23,4.86703306]
[1736646395747,0.28677535,697.41,696.23,3.05394859]
[1736646396246,0.28677535,697.41,696.12,1.81308447]
[1736646396450,0.28677535,697.41,696.11,2.74626626]
[1736646399650,0.28677535,697.41,696.13,1.28423773]
[1736646400452,0.28677535,697.41,696.14,1.28423773]
[1736646401950,0.28677535,697.41,696.14,4.33818632]
[1736646402152,0.28677535,697.41,696.15,2.74626626]
[1736646404653,0.28677535,697.41,696.15,5.80021485]
[1736646404853,0.28677535,697.41,696.16,2.74626626]
[1736646405153,0.28677535,697.41,696.28,1.28423773]
[1736646405955,0.28677535,697.41,696.21,1.28423773]
[1736646406155,1.07115927,697.39,696.21,1.28423773]
[1736646406455,1.07115927,697.39,696.21,4.03050399]
[1736646407050,0.28678769,697.38,696.22,1.28423773]
[1736646407651,0.28678769,697.38,696.22,4.33818632]
[1736646407856,0.28678769,697.38,696.23,2.74626626]
[1736646409157,1.35794696,697.38,696.24,1.28423773]
[1736646410750,1.35794696,697.38,696.24,4.33818632]
[1736646410955,1.35794696,697.38,696.25,2.74626626]
[1736646412256,0.28678769,697.38,696.25,4.03050399]
[1736646412457,0.28678769,697.38,696.26,3.05394859]
[1736646412660,0.28678769,697.38,696.26,5.80021485]
[1736646412959,0.28678769,697.38,696.27,2.74626626]
[1736646413158,1.35794696,697.38,696.27,2.74626626]
[1736646413759,1.35794696,697.38,696.27,1.81308447]
[1736646413959,1.35794696,697.38,696.26,4.86703306]
[1736646414259,0.28678769,697.38,696.32,1.28423773]
[1736646415155,0.28678769,697.38,696.18,1.28423773]
[1736646415557,0.28678769,697.38,696.18,4.33818632]
[1736646415755,0.28678769,697.38,696.19,2.74623492]
[1736646416862,0.28678769,697.38,696.19,4.03047265]
[1736646418359,0.28678769,697.38,696.2,3.05394859]
[1736646418664,0.28678769,697.38,696.2,4.86703306]
[1736646418865,0.28678769,697.38,696.21,1.81308447]
[1736646419068,0.28678769,697.38,696.2,3.05394859]
[1736646419367,0.28678769,697.38,696.2,2.74623739]
[1736646419567,0.28678769,697.38,696.18,2.74623739]
[1736646419769,0.28678769,697.38,696.18,1.81308447]
[1736646419969,0.28678769,697.38,696.17,1.28423773]
[1736646420364,0.28678769,697.38,696.19,1.28423773]
[1736646421065,0.28678769,697.38,696.1,2.74623673]
[1736646421772,0.28678769,697.38,696.02,2.74623673]
[1736646424067,0.28678769,697.38,696.04,1.28423773]
[1736646425068,0.28678769,697.38,696.04,2.74623673]
[1736646425975,0.28678769,697.38,696.07,1.28423773]
[1736646426672,0.28678769,697.38,696.26,1.28423773]
[1736646427970,0.28678769,697.38,696.19,2.74623673]
[1736646429176,0.28678769,697.38,696.14,2.74623673]
[1736646430575,0.28678769,697.38,696.13,2.74623673]
[1736646431174,0.28678769,697.38,696.22,1.28423773]
[1736646431878,0.28678769,697.38,696.19,1.28423773]
[1736646433475,0.28678769,697.38,696.17,2.74623673]
[1736646434979,0.28678769,697.38,696.15,2.74623673]
[1736646435172,0.28678769,697.38,696.16,0.28729027]
[1736646437281,0.28678769,697.38,696.27,1.28423773]
[1736646439275,1.49748805,698.02,696.18,1.80711595]
[1736646439481,0.28653295,698.0,696.17,3.05394859]
[1736646440180,0.28653295,698.0,696.18,0.28728202]
[1736646452789,0.28653295,698.0,696.18,1.57151975]
[1736646453989,0.28653295,698.0,696.23,1.28423773]
[1736646454989,0.28653295,698.0,696.25,1.28423773]
[1736646455190,0.28653295,698.0,696.26,0.28724901]
[1736646455691,0.26349171,697.99,696.26,0.28724901]
[1736646456191,0.28654526,697.97,696.26,0.28724901]
[1736646456391,0.26348941,697.96,696.26,0.28724901]
[1736646456794,0.28655758,697.94,696.26,0.28724901]
[1736646457588,0.28655758,697.94,696.36,1.28423773]
[1736646458393,0.28655758,697.94,696.38,1.28423773]
[1736646459086,0.26348417,697.93,696.38,1.28423773]
[1736646459291,0.28656579,697.92,696.38,1.28423773]
[1736646459492,0.26348417,697.91,696.38,1.28423773]
[1736646459792,0.286574,697.9,696.31,2.73309916]
[1736646461191,0.286574,697.9,696.29,2.73309916]
[1736646461389,0.286574,697.9,696.29,4.30457352]
[1736646462292,0.286574,697.9,696.33,1.28423773]
[1736646463287,0.286574,697.9,696.32,1.28423773]
[1736646463797,0.286574,697.9,696.32,4.33818632]
[1736646464093,0.286574,697.9,696.33,2.73309916]
[1736646464294,0.286574,697.9,696.36,1.28423773]
[1736646465491,0.286574,697.9,696.39,1.28423773]
[1736646466990,0.286574,697.9,696.51,1.28423773]
[1736646467791,0.286574,697.9,696.54,1.28423773]
[1736646469592,0.286574,697.9,696.55,1.28423773]
[1736646470599,0.286574,697.9,696.67,1.28423773]
[1736646471598,0.286574,697.9,696.64,1.28423773]
[1736646473401,0.286574,697.9,696.68,1.28423773]
[1736646474402,0.286574,697.9,696.62,3.05394859]
[1736646474703,0.286574,697.9,696.62,5.78488573]
[1736646475000,0.286574,697.9,696.63,2.73093714]
[1736646476303,0.286574,697.9,696.62,2.73093714]
[1736646477702,0.286574,697.9,696.61,2.73093714]
[1736646480004,0.286574,697.9,696.57,1.28423773]
[1736646481206,0.286574,697.9,696.58,1.28423773]
[1736646482301,0.286574,697.9,696.52,2.72828765]
[1736646482302,0.286574,697.9,696.6,1.28423773]
[1736646484007,0.286574,697.9,696.53,3.03464755]
[1736646484807,0.286574,697.9,696.27,2.7281046]
[1736646485007,0.286574,697.9,696.24,3.03464755]
[1736646485008,0.286574,697.9,696.25,4.01234233]
[1736646486002,0.286574,697.9,696.25,2.7281046]
[1736646487610,0.286574,697.9,696.27,1.28423773]
[1736646488610,0.286574,697.9,696.24,1.28423773]
[1736646489411,0.286574,697.9,696.35,1.28423773]
[1736646489612,0.286574,697.9,696.36,0.28720776]
[1736646490214,0.286574,697.9,696.37,1.28423773]
[1736646490610,0.286574,697.9,696.38,0.28719951]
[1736646491013,0.286574,697.9,696.4,1.28423773]
[1736646491611,0.286574,697.9,696.41,0.28718714]
[1736646502421,0.286574,697.9,696.56,1.28423773]
[1736646503319,0.286574,697.9,696.68,1.28423773]
[1736646504518,0.286574,697.9,696.62,1.28423773]
[1736646505625,0.286574,697.9,696.72,1.28423773]
[1736646507721,0.286574,697.9,696.73,1.28423773]
[1736646508731,0.286574,697.9,696.76,1.28423773]
[1736646510829,0.286574,697.9,696.69,3.03464755]
[1736646510830,0.286574,697.9,696.7,2.72997767]
[1736646512229,0.286574,697.9,696.62,2.72997767]
[1736646513329,0.286574,697.9,696.62,5.76462522]
[1736646513529,0.286574,697.9,696.63,2.72997767]
[1736646514828,0.286574,697.9,696.63,3.03464755]
[1736646515031,0.286574,697.9,696.62,1.28423773]
[1736646515331,0.286574,697.9,696.75,1.28423773]
[1736646516133,0.286574,697.9,696.52,3.03984721]
[1736646516932,0.286574,697.9,696.31,2.73314014]
[1736646517131,0.286574,697.9,696.29,2.73314014]
[1736646518928,0.286574,697.9,696.3,1.28423773]
[1736646520034,0.286574,697.9,696.29,4.01737787]
[1736646520638,0.286574,697.9,696.3,3.03984721]
[1736646520837,0.286574,697.9,696.3,5.77298735]
[1736646521128,0.286574,697.9,696.31,2.73314014]
[1736646522334,0.286574,697.9,696.3,2.73314014]
[1736646523535,0.286574,697.9,696.3,5.77298735]
[1736646523837,0.286574,697.9,696.33,1.28423773]
[1736646524631,0.286574,697.9,696.5,1.28423773]
[1736646526835,0.286574,697.9,696.57,1.28423773]
[1736646528130,0.286574,697.9,696.55,1.28423773]
[1736646528937,0.286574,697.9,696.54,1.28423773]
[1736646529741,0.286574,697.9,696.52,1.28423773]
[1736646530642,0.26351374,697.89,696.52,3.03984721]
[1736646530841,0.26351374,697.89,696.52,5.77298735]
[1736646531041,0.28658222,697.88,696.53,2.73314014]
[1736646531234,0.26351374,697.87,696.53,2.73314014]
[1736646531438,0.28659043,697.86,696.53,2.73314014]
[1736646531642,0.26351374,697.85,696.53,2.73314014]
[1736646531841,0.28659864,697.84,696.53,2.73314014]
[1736646532637,0.28659864,697.84,696.53,1.80587382]
[1736646533039,0.28659864,697.84,696.46,1.28423773]
[1736646533343,0.28659864,697.84,696.43,1.28423773]
[1736646534540,0.28659864,697.84,696.41,0.28718714]
[1736646551658,0.28659864,697.84,696.42,1.28423773]
[1736646553258,0.28659864,697.84,696.41,1.57142487]
[1736646554357,0.28659864,697.84,696.43,1.28423773]
[1736646556363,0.28659864,697.84,696.5,1.28423773]
[1736646557365,0.28659864,697.84,696.51,1.28423773]
[1736646558265,0.28659864,697.84,696.54,1.28423773]
[1736646559561,0.28659864,697.84,696.56,1.28423773]
[1736646560466,0.26351507,697.83,696.56,1.28423773]
[1736646560667,0.28660686,697.82,696.57,1.28423773]
[1736646561473,1.35776613,697.82,696.55,1.28423773]
[1736646562364,1.35776613,697.82,696.57,1.28423773]
[1736646563272,1.07115927,697.81,696.58,1.28423773]
[1736646563470,0.28661507,697.8,696.58,1.28423773]
[1736646564270,0.28661507,697.8,696.55,3.03984721]
[1736646564271,1.07115927,697.71,696.55,3.03984721]
[1736646564571,0.28665615,697.7,696.55,5.77370307]
[1736646564766,0.28665615,697.7,696.56,2.73385586]
[1736646565769,0.28665615,697.7,696.53,2.73385586]
[1736646566470,0.28665615,697.7,696.53,5.77370307]
[1736646566663,0.28665615,697.7,696.54,2.73385586]
[1736646567974,1.07115927,697.69,696.54,2.73385586]
[1736646568175,0.28666437,697.68,696.54,2.73385586]
[1736646569371,0.28666437,697.68,696.51,2.73385586]
[1736646570273,0.28666437,697.68,696.51,5.77370307]
[1736646570475,0.28666437,697.68,696.52,2.73385586]
[1736646571678,0.28666437,697.68,696.52,4.01809359]
[1736646572575,0.28666437,697.68,696.52,2.73385586]
[1736646573178,0.28666437,697.68,696.52,5.77370307]
[1736646573380,0.28666437,697.68,696.53,2.73385586]
[1736646574480,0.28666437,697.68,696.53,5.77370307]
[1736646574680,0.28666437,697.68,696.54,2.73385586]
[1736646576285,0.28666437,697.68,696.53,2.73385586]
[1736646578381,0.28666437,697.68,696.6,1.28423773]
[1736646578983,0.28666437,697.68,696.61,1.28423773]
[1736646582290,0.28666437,697.68,696.62,1.28423773]
[1736646583991,0.28666437,697.68,696.63,1.28423773]